[Event "*** Titled Tuesday Blitz"]
[Site "Chess.com"]
[Date "2020.02.04"]
[Round "9"]
[White "Terao90"]
[Black "kingofthenil"]
[Result "0-1"]
[WhiteElo "2428"]
[BlackElo "2499"]
[TimeControl "180+2"]
[EndTime "15:07:30 PST"]
[Termination "kingofthenil won by resignation"]

1. e4 {[%clk 0:03:01.9]} 1... e6 {[%clk 0:03:00.6]} 2. Qe2 {[%clk 0:03:02.4]}
2... d5 {[%clk 0:03:02.5]} 3. exd5 {[%clk 0:03:04.3]} 3... Qxd5 {[%clk
0:03:03.2]} 4. Nc3 {[%clk 0:03:06]} 4... Qd8 {[%clk 0:03:00]} 5. Nf3 {[%clk
0:03:07.2]} 5... Nc6 {[%clk 0:03:00.5]} 6. d4 {[%clk 0:03:06.9]} 6... Nf6 {[%clk
0:02:59.7]} 7. Bg5 {[%clk 0:03:07.2]} 7... Nxd4 {[%clk 0:02:57]} 8. Nxd4 {[%clk
0:03:09.1]} 8... Qxd4 {[%clk 0:02:58.7]} 9. Rd1 {[%clk 0:02:51.8]} 9... Qb4
{[%clk 0:02:57.5]} 10. Qb5+ {[%clk 0:02:51.1]} 10... c6 {[%clk 0:02:58.3]} 11.
Qe5 {[%clk 0:02:45.3]} 11... Be7 {[%clk 0:02:54.7]} 12. Bd3 {[%clk 0:02:41.9]}
12... h6 {[%clk 0:02:34.3]} 13. Bd2 {[%clk 0:02:41.4]} 13... Qc5 {[%clk
0:02:22]} 14. Qe2 {[%clk 0:02:40.2]} 14... O-O {[%clk 0:02:21.2]} 15. O-O {[%clk
0:02:41.2]} 15... e5 {[%clk 0:01:57.1]} 16. Be3 {[%clk 0:02:38]} 16... Qa5
{[%clk 0:01:56.6]} 17. a3 {[%clk 0:02:36.6]} 17... Bg4 {[%clk 0:01:55]} 18. f3
{[%clk 0:01:52.9]} 18... Be6 {[%clk 0:01:53.5]} 19. Kh1 {[%clk 0:01:50.4]} 19...
Rfe8 {[%clk 0:01:51.6]} 20. Qe1 {[%clk 0:01:38]} 20... Rad8 {[%clk 0:01:44]} 21.
Qf2 {[%clk 0:01:32.8]} 21... b6 {[%clk 0:01:33.4]} 22. Ra1 {[%clk 0:01:32.8]}
22... c5 {[%clk 0:01:23.8]} 23. b4 {[%clk 0:01:22.8]} 23... cxb4 {[%clk
0:01:24.5]} 24. axb4 {[%clk 0:01:24.7]} 24... Qxb4 {[%clk 0:01:26.4]} 25. Nb5
{[%clk 0:01:21.2]} 25... e4 {[%clk 0:01:19.1]} 26. fxe4 {[%clk 0:01:17.8]} 26...
Ng4 {[%clk 0:01:08.4]} 27. Qf3 {[%clk 0:01:14.8]} 27... Ne5 {[%clk 0:00:57]} 28.
Qg3 {[%clk 0:01:14.5]} 28... Nxd3 {[%clk 0:00:51.5]} 29. Rfb1 {[%clk 0:01:14.7]}
29... Qxe4 {[%clk 0:00:42.1]} 30. Bd4 {[%clk 0:01:07.2]} 30... Rxd4 {[%clk
0:00:41.6]} 31. Nxd4 {[%clk 0:01:07.5]} 31... Qxd4 {[%clk 0:00:43.5]} 32. cxd3
{[%clk 0:01:08.2]} 32... a5 {[%clk 0:00:42.4]} 33. Re1 {[%clk 0:01:03.7]} 33...
Bf6 {[%clk 0:00:42.4]} 34. Rac1 {[%clk 0:01:03.2]} 34... Rd8 {[%clk 0:00:43.4]}
35. Rc6 {[%clk 0:00:57.8]} 35... a4 {[%clk 0:00:42.8]} 0-1

[Event "*** Titled Tuesday Blitz"]
[Site "Chess.com"]
[Date "2020.02.04"]
[Round "9"]
[White "SoltaniciR"]
[Black "DiamondCrusher22"]
[Result "0-1"]
[WhiteElo "2464"]
[BlackElo "2061"]
[TimeControl "180+2"]
[EndTime "15:07:36 PST"]
[Termination "DiamondCrusher22 won on time"]

1. e4 {[%clk 0:03:01.9]} 1... e5 {[%clk 0:03:00.6]} 2. Nf3 {[%clk 0:03:02.2]}
2... Nc6 {[%clk 0:03:02.1]} 3. Bb5 {[%clk 0:03:03]} 3... Nf6 {[%clk 0:03:02.7]}
4. d3 {[%clk 0:03:00.2]} 4... d6 {[%clk 0:03:02.1]} 5. c3 {[%clk 0:03:00.2]}
5... Bd7 {[%clk 0:03:02.2]} 6. O-O {[%clk 0:03:00]} 6... g6 {[%clk 0:03:02]} 7.
Re1 {[%clk 0:02:55]} 7... Bg7 {[%clk 0:03:03.3]} 8. Nbd2 {[%clk 0:02:46.4]} 8...
O-O {[%clk 0:03:01.7]} 9. Ba4 {[%clk 0:02:47.4]} 9... Ne8 {[%clk 0:02:56.8]} 10.
Nf1 {[%clk 0:02:23.2]} 10... h6 {[%clk 0:02:56.5]} 11. d4 {[%clk 0:02:20.6]}
11... f5 {[%clk 0:02:56.3]} 12. exf5 {[%clk 0:01:09.7]} 12... Bxf5 {[%clk
0:02:28.7]} 13. dxe5 {[%clk 0:00:50.8]} 13... dxe5 {[%clk 0:02:10.8]} 14. Qb3+
{[%clk 0:00:28.4]} 14... Kh7 {[%clk 0:02:04.8]} 15. Qxb7 {[%clk 0:00:29.1]}
15... Na5 {[%clk 0:02:00.9]} 16. Qa6 {[%clk 0:00:30]} 16... c5 {[%clk
0:01:47.9]} 17. Rd1 {[%clk 0:00:16.4]} 17... Qb6 {[%clk 0:01:32.2]} 18. Qxb6
{[%clk 0:00:15.6]} 18... axb6 {[%clk 0:01:33]} 19. Ne3 {[%clk 0:00:08.5]} 19...
Be6 {[%clk 0:01:25.1]} 20. Bd2 {[%clk 0:00:05.3]} 20... Nd6 {[%clk 0:01:15.8]}
21. b4 {[%clk 0:00:06]} 21... Nac4 {[%clk 0:01:13.6]} 22. Bb3 {[%clk 0:00:04.6]}
22... Nxe3 {[%clk 0:00:52.3]} 23. Bxe3 {[%clk 0:00:05]} 23... Bxb3 {[%clk
0:00:41.5]} 24. axb3 {[%clk 0:00:06.9]} 24... Rxa1 {[%clk 0:00:39.9]} 25. Rxa1
{[%clk 0:00:06.7]} 25... cxb4 {[%clk 0:00:40.8]} 26. cxb4 {[%clk 0:00:07.1]}
26... e4 {[%clk 0:00:41.8]} 27. Nd4 {[%clk 0:00:08.1]} 27... Nf5 {[%clk
0:00:39.5]} 0-1

[Event "*** Titled Tuesday Blitz"]
[Site "Chess.com"]
[Date "2020.02.04"]
[Round "9"]
[White "AlexandraBotez"]
[Black "zurzan"]
[Result "1-0"]
[WhiteElo "2170"]
[BlackElo "1949"]
[TimeControl "180+2"]
[EndTime "15:07:36 PST"]
[Termination "AlexandraBotez won by resignation"]

1. d4 {[%clk 0:02:58.6]} 1... d6 {[%clk 0:03:00.9]} 2. c4 {[%clk 0:02:57]} 2...
f5 {[%clk 0:03:01.5]} 3. g3 {[%clk 0:02:56.5]} 3... Nf6 {[%clk 0:03:02.2]} 4.
Bg2 {[%clk 0:02:57.9]} 4... g6 {[%clk 0:03:04.1]} 5. Nc3 {[%clk 0:02:59.1]} 5...
Bg7 {[%clk 0:03:05.7]} 6. Nf3 {[%clk 0:02:59.5]} 6... O-O {[%clk 0:03:07.2]} 7.
O-O {[%clk 0:02:59.7]} 7... c6 {[%clk 0:03:09.1]} 8. d5 {[%clk 0:02:59.4]} 8...
e5 {[%clk 0:03:08.1]} 9. dxe6 {[%clk 0:02:49.3]} 9... Bxe6 {[%clk 0:03:09.1]}
10. Nd2 {[%clk 0:02:22.7]} 10... d5 {[%clk 0:03:03.9]} 11. cxd5 {[%clk
0:02:23.6]} 11... Nxd5 {[%clk 0:03:03.2]} 12. Nxd5 {[%clk 0:02:23.5]} 12... Bxd5
{[%clk 0:03:04.1]} 13. Nf3 {[%clk 0:02:21.5]} 13... Nd7 {[%clk 0:02:52.2]} 14.
Qc2 {[%clk 0:02:20]} 14... Ne5 {[%clk 0:02:39.2]} 15. Rd1 {[%clk 0:02:13.2]}
15... Qe7 {[%clk 0:02:03.6]} 16. Nxe5 {[%clk 0:01:56.7]} 16... Qxe5 {[%clk
0:02:03.8]} 17. Bxd5+ {[%clk 0:01:53.1]} 17... cxd5 {[%clk 0:02:04.1]} 18. Qb3
{[%clk 0:01:54]} 18... Rf7 {[%clk 0:01:37.5]} 19. Rxd5 {[%clk 0:01:15.5]} 19...
Qxe2 {[%clk 0:01:36.2]} 20. Bd2 {[%clk 0:00:48.1]} 20... Qe8 {[%clk 0:00:36]}
21. Re1 {[%clk 0:00:48.1]} 21... Qc8 {[%clk 0:00:26.2]} 22. Rc1 {[%clk
0:00:37.4]} 22... Qe8 {[%clk 0:00:24.3]} 23. Rdc5 {[%clk 0:00:28.8]} 23... Rd8
{[%clk 0:00:18.5]} 24. Bg5 {[%clk 0:00:25.3]} 24... Rc8 {[%clk 0:00:14.9]} 25.
Rxc8 {[%clk 0:00:21.2]} 25... Qxc8 {[%clk 0:00:15.8]} 26. Rxc8+ {[%clk
0:00:21.6]} 1-0

[Event "*** Titled Tuesday Blitz"]
[Site "Chess.com"]
[Date "2020.02.04"]
[Round "9"]
[White "heyiampotato"]
[Black "Snegokhod"]
[Result "0-1"]
[WhiteElo "2465"]
[BlackElo "2634"]
[TimeControl "180+2"]
[EndTime "15:07:48 PST"]
[Termination "Snegokhod won by resignation"]

1. d4 {[%clk 0:02:50.1]} 1... Nf6 {[%clk 0:03:00.3]} 2. c4 {[%clk 0:02:51]} 2...
g6 {[%clk 0:03:01.1]} 3. Nc3 {[%clk 0:02:51.7]} 3... d5 {[%clk 0:03:01.8]} 4.
cxd5 {[%clk 0:02:52.9]} 4... Nxd5 {[%clk 0:03:02.3]} 5. Bd2 {[%clk 0:02:54.2]}
5... Bg7 {[%clk 0:03:02.7]} 6. e4 {[%clk 0:02:55]} 6... Nb6 {[%clk 0:03:03.4]}
7. Be3 {[%clk 0:02:55.1]} 7... O-O {[%clk 0:03:03.7]} 8. Nf3 {[%clk 0:02:46.3]}
8... Bg4 {[%clk 0:03:02.3]} 9. Bb5 {[%clk 0:02:40.1]} 9... c6 {[%clk 0:02:57.3]}
10. Be2 {[%clk 0:02:40.7]} 10... N8d7 {[%clk 0:02:51.8]} 11. a4 {[%clk
0:02:28.5]} 11... a5 {[%clk 0:02:51.4]} 12. e5 {[%clk 0:02:19]} 12... Nb8 {[%clk
0:02:49.2]} 13. h3 {[%clk 0:02:11.5]} 13... Be6 {[%clk 0:02:49.2]} 14. h4 {[%clk
0:02:06.1]} 14... h5 {[%clk 0:02:45.1]} 15. Ng5 {[%clk 0:02:05.2]} 15... Bc4
{[%clk 0:02:45.7]} 16. Bxh5 {[%clk 0:02:01]} 16... Na6 {[%clk 0:02:36.5]} 17.
Be2 {[%clk 0:01:54.3]} 17... Nb4 {[%clk 0:02:29.9]} 18. h5 {[%clk 0:01:43.4]}
18... Bxe2 {[%clk 0:02:14.4]} 19. Qxe2 {[%clk 0:01:43.7]} 19... N6d5 {[%clk
0:02:07.1]} 20. e6 {[%clk 0:01:35.8]} 20... f5 {[%clk 0:01:41]} 21. hxg6 {[%clk
0:01:30.7]} 21... Rf6 {[%clk 0:01:37.8]} 22. Nf7 {[%clk 0:01:17.3]} 22... Qc8
{[%clk 0:01:33.6]} 23. Rh7 {[%clk 0:00:37.2]} 23... Rxg6 {[%clk 0:01:20.5]} 24.
Qh5 {[%clk 0:00:37.3]} 24... Qxe6 {[%clk 0:01:20.1]} 25. Ne5 {[%clk 0:00:28.9]}
25... Nxe3 {[%clk 0:01:04.4]} 26. Nxg6 {[%clk 0:00:19.3]} 26... Nec2+ {[%clk
0:00:37.5]} 27. Kf1 {[%clk 0:00:20.3]} 27... Nxa1 {[%clk 0:00:38.6]} 28. Nf4
{[%clk 0:00:17.3]} 28... Qf7 {[%clk 0:00:33.5]} 29. Qg5 {[%clk 0:00:15.5]} 29...
Kxh7 {[%clk 0:00:32.3]} 0-1

[Event "*** Titled Tuesday Blitz"]
[Site "Chess.com"]
[Date "2020.02.04"]
[Round "9"]
[White "ChessPlayer202202"]
[Black "Al_Shima"]
[Result "0-1"]
[WhiteElo "2238"]
[BlackElo "2431"]
[TimeControl "180+2"]
[EndTime "15:07:58 PST"]
[Termination "Al_Shima won by resignation"]

1. e4 {[%clk 0:03:01.9]} 1... Nc6 {[%clk 0:02:59.9]} 2. Nf3 {[%clk 0:03:01.3]}
2... d5 {[%clk 0:03:00.1]} 3. exd5 {[%clk 0:02:57.9]} 3... Qxd5 {[%clk 0:03:02]}
4. Nc3 {[%clk 0:02:59.2]} 4... Qa5 {[%clk 0:03:02.7]} 5. Bc4 {[%clk 0:02:35.3]}
5... Bg4 {[%clk 0:02:58.3]} 6. d3 {[%clk 0:02:26.1]} 6... Ne5 {[%clk 0:02:56.1]}
7. Qe2 {[%clk 0:01:55.8]} 7... Nxf3+ {[%clk 0:02:32.2]} 8. gxf3 {[%clk
0:01:55.8]} 8... Bh5 {[%clk 0:02:32.9]} 9. Bb5+ {[%clk 0:01:44.6]} 9... c6
{[%clk 0:02:32.3]} 10. Qe5 {[%clk 0:01:45.5]} 10... cxb5 {[%clk 0:02:18.3]} 11.
Qxh5 {[%clk 0:01:45.8]} 11... a6 {[%clk 0:02:12.4]} 12. Bd2 {[%clk 0:01:45.9]}
12... Nf6 {[%clk 0:02:11.9]} 13. Qe5 {[%clk 0:01:32.3]} 13... Qb6 {[%clk
0:01:58.4]} 14. a4 {[%clk 0:01:01.7]} 14... bxa4 {[%clk 0:01:55.5]} 15. Nxa4
{[%clk 0:01:00.6]} 15... Qc6 {[%clk 0:01:52.8]} 16. Qe3 {[%clk 0:00:27.2]} 16...
Qxc2 {[%clk 0:01:46.1]} 17. O-O {[%clk 0:00:23.7]} 17... Rd8 {[%clk 0:01:39.7]}
18. Ra3 {[%clk 0:00:15.9]} 18... Qc6 {[%clk 0:01:12.5]} 19. Rc1 {[%clk
0:00:15.3]} 19... Qd6 {[%clk 0:01:11.2]} 20. Ba5 {[%clk 0:00:11.7]} 20... e6
{[%clk 0:00:43.6]} 21. Bxd8 {[%clk 0:00:12]} 21... Qxd8 {[%clk 0:00:41.7]} 22.
Rac3 {[%clk 0:00:13]} 22... Nd5 {[%clk 0:00:32.3]} 23. Qe4 {[%clk 0:00:08.9]}
23... Nxc3 {[%clk 0:00:32.5]} 24. Rxc3 {[%clk 0:00:10.8]} 24... Bd6 {[%clk
0:00:24]} 25. Nc5 {[%clk 0:00:03.4]} 25... Qg5+ {[%clk 0:00:20.7]} 26. Kf1
{[%clk 0:00:04]} 26... Bxc5 {[%clk 0:00:20.9]} 27. Qxb7 {[%clk 0:00:04.7]} 27...
O-O {[%clk 0:00:21.4]} 0-1

[Event "*** Titled Tuesday Blitz"]
[Site "Chess.com"]
[Date "2020.02.04"]
[Round "9"]
[White "SuperCheese"]
[Black "ChainsOfFantasia"]
[Result "0-1"]
[WhiteElo "2666"]
[BlackElo "2516"]
[TimeControl "180+2"]
[EndTime "15:08:16 PST"]
[Termination "ChainsOfFantasia won by resignation"]

1. d4 {[%clk 0:02:59.2]} 1... Nf6 {[%clk 0:03:00.7]} 2. c4 {[%clk 0:03:00.8]}
2... e6 {[%clk 0:03:02]} 3. Nc3 {[%clk 0:03:02.4]} 3... d5 {[%clk 0:03:03.1]} 4.
Nf3 {[%clk 0:03:03.1]} 4... dxc4 {[%clk 0:03:03.7]} 5. e4 {[%clk 0:03:02.8]}
5... Bb4 {[%clk 0:03:04.8]} 6. Bg5 {[%clk 0:03:03.4]} 6... b5 {[%clk 0:03:04.9]}
7. Qc2 {[%clk 0:02:40.4]} 7... h6 {[%clk 0:03:03.8]} 8. Bh4 {[%clk 0:02:34.7]}
8... Bb7 {[%clk 0:03:03.5]} 9. O-O-O {[%clk 0:02:11.3]} 9... g5 {[%clk
0:02:58.7]} 10. d5 {[%clk 0:01:31.7]} 10... gxh4 {[%clk 0:02:43.3]} 11. dxe6
{[%clk 0:01:31.8]} 11... Qe7 {[%clk 0:02:42.2]} 12. exf7+ {[%clk 0:01:32.9]}
12... Kxf7 {[%clk 0:02:37.3]} 13. Nxb5 {[%clk 0:01:32.4]} 13... Bxe4 {[%clk
0:02:26.3]} 14. Bxc4+ {[%clk 0:01:31.2]} 14... Kg7 {[%clk 0:02:24.5]} 15. Qb3
{[%clk 0:01:30.4]} 15... Qc5 {[%clk 0:02:12.1]} 16. Nfd4 {[%clk 0:00:58.9]}
16... Qg5+ {[%clk 0:02:03.7]} 17. Qe3 {[%clk 0:00:55.2]} 17... Qxe3+ {[%clk
0:02:02.9]} 18. fxe3 {[%clk 0:00:57.1]} 18... Nc6 {[%clk 0:01:45]} 19. Nxc7
{[%clk 0:00:53]} 19... Rac8 {[%clk 0:01:45.6]} 20. Nde6+ {[%clk 0:00:52.9]}
20... Kh7 {[%clk 0:01:39.7]} 21. Rhf1 {[%clk 0:00:53.9]} 21... Be7 {[%clk
0:01:38.5]} 22. Rf4 {[%clk 0:00:48.9]} 22... Ne5 {[%clk 0:01:27.3]} 23. Ba6
{[%clk 0:00:35.5]} 23... Rb8 {[%clk 0:01:11.1]} 24. Rd4 {[%clk 0:00:26.9]} 24...
Bg6 {[%clk 0:01:00.1]} 25. Rxh4 {[%clk 0:00:27.8]} 25... Rb6 {[%clk 0:00:54.6]}
26. Be2 {[%clk 0:00:20.6]} 26... Rc8 {[%clk 0:00:48]} 27. Kd1 {[%clk 0:00:10]}
27... Rxb2 {[%clk 0:00:43.1]} 28. Ba6 {[%clk 0:00:09.5]} 28... Rcb8 {[%clk
0:00:38.3]} 29. Ke1 {[%clk 0:00:04.2]} 29... Rxg2 {[%clk 0:00:37.2]} 30. Nf4
{[%clk 0:00:04.1]} 30... Rxa2 {[%clk 0:00:35.5]} 31. Nxg6 {[%clk 0:00:03.7]}
31... Nxg6 {[%clk 0:00:34.9]} 32. Bd3 {[%clk 0:00:03.4]} 32... Rbb2 {[%clk
0:00:23]} 33. Rh3 {[%clk 0:00:04]} 33... Ra1+ {[%clk 0:00:24]} 0-1

[Event "*** Titled Tuesday Blitz"]
[Site "Chess.com"]
[Date "2020.02.04"]
[Round "9"]
[White "bsnsun"]
[Black "Gentlejimmy7"]
[Result "0-1"]
[WhiteElo "2435"]
[BlackElo "2634"]
[TimeControl "180+2"]
[EndTime "15:08:17 PST"]
[Termination "Gentlejimmy7 won by resignation"]

1. d4 {[%clk 0:02:58.2]} 1... Nf6 {[%clk 0:02:39.7]} 2. c4 {[%clk 0:02:58.4]}
2... g6 {[%clk 0:02:40.8]} 3. g3 {[%clk 0:02:57.6]} 3... d5 {[%clk 0:02:42]} 4.
cxd5 {[%clk 0:02:57.9]} 4... Nxd5 {[%clk 0:02:43.6]} 5. Nf3 {[%clk 0:02:59.4]}
5... Bg7 {[%clk 0:02:43.5]} 6. Bg2 {[%clk 0:03:01]} 6... O-O {[%clk 0:02:44.9]}
7. O-O {[%clk 0:03:02]} 7... Nc6 {[%clk 0:02:46.5]} 8. e3 {[%clk 0:03:03.2]}
8... Nb6 {[%clk 0:02:42.4]} 9. Nc3 {[%clk 0:03:04.3]} 9... e5 {[%clk 0:02:42.7]}
10. d5 {[%clk 0:03:03.6]} 10... e4 {[%clk 0:02:44.1]} 11. dxc6 {[%clk
0:02:59.7]} 11... Qxd1 {[%clk 0:02:42.1]} 12. Rxd1 {[%clk 0:02:59.6]} 12... exf3
{[%clk 0:02:42.7]} 13. Bxf3 {[%clk 0:03:00.8]} 13... bxc6 {[%clk 0:02:44]} 14.
Bxc6 {[%clk 0:03:02]} 14... Rb8 {[%clk 0:02:44.8]} 15. Nb5 {[%clk 0:02:54]}
15... Nc4 {[%clk 0:02:34.4]} 16. Rb1 {[%clk 0:01:50.8]} 16... Bf5 {[%clk
0:02:24.6]} 17. e4 {[%clk 0:01:50.3]} 17... Bg4 {[%clk 0:02:25.9]} 18. Re1
{[%clk 0:01:48.2]} 18... a6 {[%clk 0:02:21.2]} 19. Nxc7 {[%clk 0:01:36.9]} 19...
Na3 {[%clk 0:02:21.4]} 20. Ra1 {[%clk 0:01:35.5]} 20... Nc2 {[%clk 0:02:21.7]}
21. Bf4 {[%clk 0:01:33]} 21... Nxa1 {[%clk 0:02:22.6]} 22. Rxa1 {[%clk
0:01:20.9]} 22... Rxb2 {[%clk 0:02:24]} 23. Rc1 {[%clk 0:01:08]} 23... Bd4
{[%clk 0:02:14.7]} 24. Be3 {[%clk 0:01:08.5]} 24... Bxe3 {[%clk 0:02:15.1]} 25.
fxe3 {[%clk 0:01:09.5]} 25... Rxa2 {[%clk 0:02:15.4]} 26. Nd5 {[%clk 0:01:09.1]}
26... Be6 {[%clk 0:02:12.1]} 27. Nb4 {[%clk 0:00:59.9]} 27... Rb2 {[%clk
0:01:53.6]} 28. Nd3 {[%clk 0:00:52.7]} 28... Re2 {[%clk 0:01:49]} 29. Nf4 {[%clk
0:00:20.1]} 29... Rxe3 {[%clk 0:01:49]} 30. Ra1 {[%clk 0:00:21.7]} 30... Bc4
{[%clk 0:01:46.2]} 31. Bd5 {[%clk 0:00:21]} 31... Bxd5 {[%clk 0:01:39.6]} 32.
exd5 {[%clk 0:00:21.7]} 32... Ra8 {[%clk 0:01:40.4]} 33. d6 {[%clk 0:00:22.5]}
33... Rd8 {[%clk 0:01:28.8]} 34. Rxa6 {[%clk 0:00:22.4]} 34... Re1+ {[%clk
0:01:29.7]} 35. Kf2 {[%clk 0:00:23.6]} 35... Rd1 {[%clk 0:01:31.1]} 36. d7
{[%clk 0:00:19.2]} 36... R1xd7 {[%clk 0:01:31.5]} 37. Rb6 {[%clk 0:00:20]} 37...
Rd2+ {[%clk 0:01:31.4]} 38. Kf3 {[%clk 0:00:19.9]} 38... R8d6 {[%clk 0:01:31.8]}
39. Rb8+ {[%clk 0:00:20.6]} 39... Kg7 {[%clk 0:01:33.3]} 40. h4 {[%clk 0:00:22]}
40... h6 {[%clk 0:01:33.8]} 41. Kg4 {[%clk 0:00:22.9]} 41... Ra2 {[%clk
0:01:31.5]} 42. Rb7 {[%clk 0:00:24.1]} 42... Ra4 {[%clk 0:01:30.4]} 43. Rc7
{[%clk 0:00:23.7]} 43... Rb6 {[%clk 0:01:29.5]} 44. Kh3 {[%clk 0:00:24.8]} 44...
Rd6 {[%clk 0:01:27.5]} 45. Rb7 {[%clk 0:00:25.5]} 45... g5 {[%clk 0:01:21]} 46.
hxg5 {[%clk 0:00:26.7]} 46... hxg5 {[%clk 0:01:22.9]} 47. Ne2 {[%clk 0:00:27.9]}
47... Rh6+ {[%clk 0:01:17.9]} 48. Kg2 {[%clk 0:00:29.1]} 48... Ra2 {[%clk
0:01:19.4]} 49. Kf3 {[%clk 0:00:30]} 49... Rf6+ {[%clk 0:01:20.5]} 50. Kg4
{[%clk 0:00:30.3]} 50... Rxe2 {[%clk 0:01:20.4]} 51. Kxg5 {[%clk 0:00:31.5]} 0-1

[Event "*** Titled Tuesday Blitz"]
[Site "Chess.com"]
[Date "2020.02.04"]
[Round "9"]
[White "Teidi96"]
[Black "ShahMatKanal"]
[Result "1-0"]
[WhiteElo "2341"]
[BlackElo "2489"]
[TimeControl "180+2"]
[EndTime "15:08:18 PST"]
[Termination "Teidi96 won by checkmate"]

1. e4 {[%clk 0:03:01.9]} 1... d5 {[%clk 0:02:57.8]} 2. exd5 {[%clk 0:03:02.3]}
2... Qxd5 {[%clk 0:02:59.7]} 3. Nc3 {[%clk 0:03:00]} 3... Qd6 {[%clk 0:03:00.9]}
4. g3 {[%clk 0:02:59.1]} 4... Nf6 {[%clk 0:03:00.6]} 5. Bg2 {[%clk 0:02:59.2]}
5... c6 {[%clk 0:03:01.6]} 6. Nge2 {[%clk 0:02:59.2]} 6... Bg4 {[%clk
0:03:00.5]} 7. O-O {[%clk 0:03:00]} 7... e6 {[%clk 0:02:57.9]} 8. a3 {[%clk
0:03:00.6]} 8... Be7 {[%clk 0:02:57.5]} 9. b4 {[%clk 0:03:01.5]} 9... O-O {[%clk
0:02:58.1]} 10. b5 {[%clk 0:03:00]} 10... Nd5 {[%clk 0:02:54.6]} 11. bxc6 {[%clk
0:02:58.3]} 11... Nxc6 {[%clk 0:02:40.7]} 12. Nxd5 {[%clk 0:02:54.8]} 12... exd5
{[%clk 0:02:41.4]} 13. h3 {[%clk 0:02:55.5]} 13... Qe5 {[%clk 0:02:08.6]} 14. d4
{[%clk 0:02:53.3]} 14... Qxe2 {[%clk 0:01:26.3]} 15. hxg4 {[%clk 0:02:51.2]}
15... Qc4 {[%clk 0:01:26]} 16. Rb1 {[%clk 0:02:36.3]} 16... b6 {[%clk
0:00:59.4]} 17. Re1 {[%clk 0:02:24.7]} 17... Bf6 {[%clk 0:00:57.8]} 18. Be3
{[%clk 0:02:22.8]} 18... Rfd8 {[%clk 0:00:44.9]} 19. Bf1 {[%clk 0:02:01.5]}
19... Qc3 {[%clk 0:00:45.6]} 20. Rb3 {[%clk 0:01:59.7]} 20... Qa5 {[%clk
0:00:46.5]} 21. Bd2 {[%clk 0:01:54.1]} 21... Qa4 {[%clk 0:00:37.5]} 22. Bb5
{[%clk 0:01:54.7]} 22... Qxd4 {[%clk 0:00:36.2]} 23. Bxc6 {[%clk 0:01:55.4]}
23... Rac8 {[%clk 0:00:35.9]} 24. Bb5 {[%clk 0:01:41.5]} 24... Qc5 {[%clk
0:00:31.5]} 25. g5 {[%clk 0:01:37.9]} 25... Bd4 {[%clk 0:00:27.8]} 26. Qf3
{[%clk 0:01:39.1]} 26... Qxc2 {[%clk 0:00:24.8]} 27. Rd3 {[%clk 0:01:40.3]}
27... Bc5 {[%clk 0:00:20.3]} 28. Ba6 {[%clk 0:01:15.9]} 28... Rb8 {[%clk
0:00:19.1]} 29. Bb5 {[%clk 0:01:11.7]} 29... Rbc8 {[%clk 0:00:18.7]} 30. Kg2
{[%clk 0:01:10.2]} 30... a5 {[%clk 0:00:17.3]} 31. Rh1 {[%clk 0:01:06.5]} 31...
g6 {[%clk 0:00:13.6]} 32. Rxh7 {[%clk 0:00:50]} 32... Kxh7 {[%clk 0:00:09.4]}
33. Qxf7+ {[%clk 0:00:49.9]} 33... Kh8 {[%clk 0:00:10.9]} 34. Qf6+ {[%clk
0:00:51.8]} 34... Kh7 {[%clk 0:00:11.4]} 35. g4 {[%clk 0:00:47]} 35... Qxd3
{[%clk 0:00:07.8]} 36. Bxd3 {[%clk 0:00:47.6]} 36... Rd6 {[%clk 0:00:07.2]} 37.
Bxg6+ {[%clk 0:00:47.5]} 37... Kg8 {[%clk 0:00:08.6]} 38. Qf7+ {[%clk
0:00:48.2]} 38... Kh8 {[%clk 0:00:10.1]} 39. Qh7# {[%clk 0:00:50.1]} 1-0

[Event "*** Titled Tuesday Blitz"]
[Site "Chess.com"]
[Date "2020.02.04"]
[Round "9"]
[White "IakovUlivar"]
[Black "volcanoexplorer"]
[Result "0-1"]
[WhiteElo "2459"]
[BlackElo "2611"]
[TimeControl "180+2"]
[EndTime "15:08:21 PST"]
[Termination "volcanoexplorer won on time"]

1. e4 {[%clk 0:03:01.9]} 1... e5 {[%clk 0:03:00.7]} 2. Nf3 {[%clk 0:03:02.5]}
2... Nc6 {[%clk 0:03:01.5]} 3. Bc4 {[%clk 0:03:02.9]} 3... Bc5 {[%clk
0:03:01.1]} 4. O-O {[%clk 0:03:02.2]} 4... Nf6 {[%clk 0:03:01.7]} 5. d3 {[%clk
0:03:03.6]} 5... O-O {[%clk 0:03:02]} 6. c3 {[%clk 0:03:03.8]} 6... d6 {[%clk
0:03:03.4]} 7. Bg5 {[%clk 0:03:01.6]} 7... h6 {[%clk 0:03:03.3]} 8. Bh4 {[%clk
0:03:02.8]} 8... a6 {[%clk 0:03:03.1]} 9. a4 {[%clk 0:02:58.8]} 9... Ba7 {[%clk
0:03:03.8]} 10. Nbd2 {[%clk 0:02:57]} 10... Be6 {[%clk 0:03:01.3]} 11. h3 {[%clk
0:02:38.2]} 11... Qe7 {[%clk 0:02:59.6]} 12. Bg3 {[%clk 0:02:33.2]} 12... Nh5
{[%clk 0:02:42.5]} 13. Bh2 {[%clk 0:02:33.2]} 13... Nf4 {[%clk 0:01:50.4]} 14.
Bxf4 {[%clk 0:02:32.8]} 14... exf4 {[%clk 0:01:52.3]} 15. d4 {[%clk 0:02:30.6]}
15... Bxc4 {[%clk 0:01:52.8]} 16. Nxc4 {[%clk 0:02:31.2]} 16... Qxe4 {[%clk
0:01:54.2]} 17. Re1 {[%clk 0:02:28.2]} 17... Qf5 {[%clk 0:01:32.7]} 18. d5
{[%clk 0:02:15.6]} 18... Nb8 {[%clk 0:01:18.5]} 19. Re7 {[%clk 0:01:57.6]} 19...
Nd7 {[%clk 0:00:49.4]} 20. Qe2 {[%clk 0:00:48.5]} 20... Rac8 {[%clk 0:00:22.6]}
21. Nh4 {[%clk 0:00:41.6]} 21... Qf6 {[%clk 0:00:23.2]} 22. Rxd7 {[%clk
0:00:40.3]} 22... Qxh4 {[%clk 0:00:24.2]} 23. Qf3 {[%clk 0:00:24.1]} 23... Rfe8
{[%clk 0:00:17.8]} 24. Nd2 {[%clk 0:00:21.4]} 24... Qg5 {[%clk 0:00:12.2]} 25.
Rd1 {[%clk 0:00:14.5]} 25... Qf5 {[%clk 0:00:12.3]} 26. Qg4 {[%clk 0:00:14.4]}
26... Qxg4 {[%clk 0:00:10.3]} 27. hxg4 {[%clk 0:00:16.3]} 27... Re2 {[%clk
0:00:10.9]} 28. Nf3 {[%clk 0:00:11.2]} 28... Rxf2 {[%clk 0:00:11.4]} 29. Kh2
{[%clk 0:00:11]} 29... Re2 {[%clk 0:00:12.3]} 30. b4 {[%clk 0:00:07.7]} 30...
Kf8 {[%clk 0:00:13.6]} 0-1